bitfinex/quotes_BTCUSD_20251114
["timestamp","ask_amount","ask_price","bid_price","bid_amount"]
[1763117119898,0.01204,97204.0,97202.0,0.20575528]
[1763117120111,0.21779442,97204.0,97200.0,0.20575957]
[1763117120515,0.01204,97204.0,97198.0,0.20576485]
[1763117120762,0.20575881,97202.0,97199.0,0.20576332]
[1763117121211,0.20575706,97203.0,97199.0,0.20576332]
[1763117121624,0.01204,97204.0,97200.0,0.20575977]
[1763117121824,0.01204,97204.0,97201.0,0.20575744]
[1763117122057,0.01204,97204.0,97203.0,0.20575496]
[1763117122888,0.01204,97204.0,97202.0,0.20575571]
[1763117123275,0.01204,97204.0,97203.0,0.20575496]
[1763117123688,0.01204,97204.0,97202.0,0.20575571]
[1763117124089,0.20575496,97203.0,97199.0,0.20576189]
[1763117124305,0.01204,97204.0,97201.0,0.20575848]
[1763117124453,0.20575596,97203.0,97200.0,0.20575986]
[1763117124650,0.01204,97204.0,97200.0,0.20575986]
[1763117124906,0.01204,97204.0,97203.0,0.20575496]
[1763117125285,0.01204,97204.0,97193.0,0.00013636]
[1763117125286,0.20575061,97206.0,97193.0,0.00013636]
[1763117125629,0.21779061,97206.0,97202.0,0.20575647]
[1763117125760,0.01204,97206.0,97203.0,0.205753]
[1763117125970,0.01204,97206.0,97204.0,0.20575278]
[1763117126175,0.01204,97206.0,97202.0,0.20575647]
[1763117126380,0.01204,97209.0,97198.0,0.20576411]
[1763117126381,0.01204,97209.0,97204.0,0.20575284]
[1763117126590,0.01204,97209.0,97207.0,0.20574516]
[1763117127023,0.01204,97209.0,97205.0,0.20574913]
[1763117127250,0.01204,97209.0,97202.0,0.20575695]
[1763117127469,0.20574438,97208.0,97193.0,0.00013636]
[1763117127677,0.01204,97209.0,97206.0,0.20574845]
[1763117127678,0.21778273,97209.0,97206.0,0.20574845]
[1763117128090,0.01204,97209.0,97206.0,0.20574845]
[1763117128345,0.01204,97209.0,97193.0,0.00013636]
[1763117128346,0.01204,97209.0,97194.0,0.20577401]
[1763117128573,0.01204,97216.0,97193.0,0.00013636]
[1763117128574,0.02405,97225.0,97200.0,0.01028806]
[1763117128784,0.20572824,97216.0,97200.0,0.01028806]
[1763117128995,0.01204,97222.0,97210.0,0.01986]
[1763117129208,0.21775661,97222.0,97218.0,0.20572302]
[1763117129422,0.20571693,97221.0,97218.0,0.20572302]
[1763117129635,0.01204,97222.0,97214.0,0.20573168]
[1763117129868,0.01204,97222.0,97209.0,0.20574217]
[1763117129869,0.20573613,97212.0,97209.0,0.20574217]
[1763117130080,0.20573193,97214.0,97211.0,0.20573723]
[1763117130285,0.20572004,97220.0,97206.0,0.20574861]
[1763117130496,0.02485,97221.0,97216.0,0.20572536]
[1763117130706,0.20572198,97219.0,97215.0,0.20572956]
[1763117130911,0.02485,97221.0,97117.0,0.05176137]
[1763117131120,0.20572019,97220.0,97217.0,0.20572515]
[1763117131338,0.20572019,97220.0,97215.0,0.20572747]
[1763117131548,0.20572019,97220.0,97216.0,0.20572745]
[1763117131756,0.02485,97221.0,97215.0,0.20572922]
[1763117131972,0.23056898,97221.0,97209.0,0.4]
[1763117132179,0.20574015,97210.0,97209.0,0.4]
[1763117132418,0.01242,97214.0,97209.0,0.4]
[1763117132625,0.2057379,97213.0,97209.0,0.4]
[1763117132844,0.20574015,97210.0,97209.0,0.4]
[1763117134167,0.22208015,97210.0,97209.0,0.4]
[1763117134401,0.03727,97219.0,97212.0,0.20573454]
[1763117134612,0.20572841,97216.0,97211.0,0.20573712]
[1763117134820,0.20572778,97216.0,97213.0,0.20573286]
[1763117135053,0.03727,97219.0,97217.0,0.20572327]
[1763117135054,0.01242,97219.0,97217.0,0.20572327]
[1763117135286,0.01242,97219.0,97218.0,0.20572321]
[1763117135902,0.01242,97219.0,97209.0,0.60574159]
[1763117135903,0.20572427,97218.0,97213.0,0.001]
[1763117136130,0.02876,97219.0,97213.0,0.001]
[1763117136343,0.02876,97219.0,97218.0,0.20572321]
[1763117136746,0.02876,97219.0,97218.0,0.20672321]
[1763117136956,0.02876,97219.0,97218.0,0.001]
[1763117137164,0.2344811,97219.0,97218.0,0.001]
[1763117139471,0.02876,97219.0,97209.0,0.4]
[1763117139680,0.01242,97210.0,97209.0,0.60574221]
[1763117140131,0.02876,97219.0,97216.0,0.20572724]
[1763117140337,0.20572445,97218.0,97215.0,0.2057287]
[1763117140544,0.23448133,97219.0,97215.0,0.2057287]
[1763117140755,0.01634,97216.0,97215.0,0.2057287]
[1763117141219,0.01634,97216.0,97213.0,0.20573229]
[1763117141220,0.01634,97216.0,97214.0,0.20573062]
[1763117141460,0.01242,97214.0,97210.0,0.20573894]
[1763117141690,0.01242,97214.0,97212.0,0.20573574]
[1763117142133,0.01242,97214.0,97210.0,0.20573894]
[1763117142349,0.01242,97214.0,97211.0,0.20573803]
[1763117142552,0.01242,97214.0,97213.0,0.2057338]
[1763117142958,0.02876,97214.0,97213.0,0.2057338]
[1763117143402,0.23449168,97214.0,97211.0,0.20573803]
[1763117144084,0.20573455,97213.0,97209.0,0.60574023]
[1763117144257,0.23449168,97214.0,97209.0,0.60574023]
[1763117144258,0.02876,97214.0,97209.0,0.4]
[1763117144458,0.20573801,97212.0,97209.0,0.4]
[1763117144692,0.02876,97214.0,97209.0,0.4]
[1763117144839,0.02876,97214.0,97213.0,0.2057338]
[1763117145074,0.3088604,97228.0,97209.0,0.60574015]
[1763117145271,0.20570629,97226.0,97210.0,0.32718417]
[1763117145513,0.20571052,97224.0,97221.0,0.2057164]
[1763117145714,0.30886565,97226.0,97222.0,0.20571474]
[1763117145912,0.10315819,97226.0,97223.0,0.20571245]
[1763117146290,0.01634,97224.0,97217.0,0.20572458]
[1763117146511,0.20571773,97221.0,97218.0,0.20572131]
[1763117146698,0.01634,97222.0,97221.0,0.20571687]
[1763117146902,0.21812058,97229.0,97224.0,0.20570962]
[1763117147100,0.21812058,97229.0,97210.0,0.32618417]
[1763117147101,0.20570764,97226.0,97222.0,0.20571264]
[1763117147310,0.01242,97229.0,97210.0,0.32618417]
[1763117147551,0.01242,97229.0,97226.0,0.20570443]
[1763117147782,0.30886025,97228.0,97224.0,0.2057093]
[1763117147974,0.20570709,97226.0,97222.0,0.001]
[1763117148098,0.10315819,97228.0,97222.0,0.001]
[1763117148295,0.01242,97229.0,97210.0,0.44934236]
[1763117148614,0.01242,97229.0,97226.0,0.20570505]
[1763117148875,0.20570978,97225.0,97209.0,0.4]
[1763117149055,0.01242,97229.0,97225.0,0.20570788]
[1763117149388,0.01242,97229.0,97210.0,0.42934236]
[1763117149553,0.01242,97229.0,97227.0,0.20570362]
[1763117149956,0.01242,97229.0,97222.0,0.20571293]
[1763117150202,0.01242,97229.0,97228.0,0.20570206]
[1763117150425,0.01242,97229.0,97226.0,0.20570417]
[1763117150758,0.01242,97229.0,97227.0,0.20570207]
[1763117151156,0.01242,97229.0,97210.0,0.32618417]
[1763117151339,0.20570629,97226.0,97225.0,0.001]
[1763117151879,0.20571475,97222.0,97218.0,0.20572294]
[1763117152018,0.20571711,97221.0,97215.0,0.2057295]
[1763117152223,0.20572149,97219.0,97215.0,0.2057295]
[1763117152425,0.20572149,97219.0,97213.0,0.2057323]
[1763117152662,0.20572076,97220.0,97216.0,0.20572623]
[1763117152874,0.20572112,97219.0,97212.0,0.20573591]
[1763117153066,0.01242,97222.0,97216.0,0.20572739]
[1763117153267,0.01242,97222.0,97219.0,0.20572057]
[1763117153640,0.20571697,97221.0,97218.0,0.20572239]
[1763117153915,0.20571697,97221.0,97216.0,0.20572556]
[1763117154113,0.20571697,97221.0,97215.0,0.20572845]
[1763117154361,0.20571898,97220.0,97210.0,0.42934236]
[1763117154564,0.20571898,97220.0,97213.0,0.002]
[1763117154764,0.01242,97222.0,97213.0,0.002]
[1763117154967,0.21815168,97214.0,97209.0,0.152]
[1763117155169,0.20573582,97213.0,97209.0,0.3577419]
[1763117155391,0.20573876,97211.0,97209.0,0.152]
[1763117155604,0.205734,97213.0,97210.0,0.20574015]
[1763117155779,0.205734,97213.0,97206.0,0.10315819]
[1763117155988,0.205734,97213.0,97208.0,0.20574286]
[1763117156215,0.205734,97213.0,97210.0,0.20573922]
[1763117157031,0.01242,97214.0,97210.0,0.20573922]
[1763117157236,0.24298687,97222.0,97212.0,0.20573394]
[1763117157237,0.20572866,97216.0,97212.0,0.20573394]
[1763117157649,0.20573316,97214.0,97210.0,0.20574015]
[1763117157858,0.20572321,97218.0,97211.0,0.20573754]
[1763117158008,0.20572751,97216.0,97213.0,0.20573182]
[1763117158619,0.20572962,97215.0,97212.0,0.20673591]
[1763117158998,0.20572771,97216.0,97212.0,0.20573591]
[1763117160229,0.20572771,97216.0,97213.0,0.20673376]
[1763117160483,0.20572241,97219.0,97214.0,0.20573135]
[1763117160688,0.20571899,97220.0,97215.0,0.20572956]
[1763117160946,0.01242,97222.0,97219.0,0.2057205]
[1763117161441,0.01242,97222.0,97218.0,0.20572308]
[1763117161642,0.01242,97222.0,97221.0,0.20571687]
[1763117162299,0.21812034,97229.0,97225.0,0.20570815]
[1763117162729,0.01242,97229.0,97215.0,0.001]
[1763117163243,0.01242,97229.0,97227.0,0.20570395]
[1763117163919,0.01242,97229.0,97226.0,0.2057062]
[1763117164258,0.01242,97229.0,97227.0,0.001]
[1763117164663,0.01242,97229.0,97228.0,0.20570206]
[1763117164888,0.01242,97229.0,97197.0,0.3820717]
[1763117165094,0.01242,97229.0,97228.0,0.20570206]
[1763117165287,0.01242,97229.0,97226.0,0.001]
[1763117165710,0.20570417,97227.0,97226.0,0.001]
[1763117166113,0.22187417,97227.0,97226.0,0.001]
[1763117166476,0.20570842,97225.0,97220.0,0.20571767]
[1763117166910,0.20571273,97223.0,97220.0,0.20571767]
[1763117167132,0.20570629,97226.0,97211.0,0.20573766]
[1763117167305,0.20571447,97223.0,97219.0,0.20572062]
[1763117167510,0.01242,97229.0,97219.0,0.20572062]
[1763117167642,0.2057059,97227.0,97222.0,0.20571379]
[1763117167847,0.20570659,97226.0,97223.0,0.20571204]
[1763117168049,0.01242,97229.0,97225.0,0.20570646]
[1763117168250,0.01242,97229.0,97210.0,0.32618417]
[1763117168251,0.01242,97229.0,97211.0,0.002]
[1763117168457,0.01242,97229.0,97223.0,0.20571142]
[1763117168659,0.20571384,97223.0,97211.0,0.002]
[1763117168859,0.01242,97229.0,97211.0,0.002]
[1763117168860,0.01243,97212.0,97211.0,0.002]
[1763117169183,0.23439591,97212.0,97211.0,0.002]
[1763117169597,0.23439591,97212.0,97210.0,0.20573966]
[1763117169598,0.01243,97212.0,97210.0,0.20573966]
[1763117169800,0.22196856,97211.0,97210.0,0.00013636]
[1763117171004,0.01623,97211.0,97210.0,0.00013636]
[1763117171378,0.01623,97211.0,97210.0,0.00213636]
[1763117172911,0.01243,97212.0,97210.0,0.00213636]
[1763117173121,0.21816682,97212.0,97210.0,0.00133636]
[1763117173531,0.01623,97211.0,97210.0,0.00133636]
[1763117173736,0.20574015,97210.0,97204.0,0.20575161]
[1763117173940,0.20587626,97210.0,97204.0,0.20575161]
[1763117174141,0.20587626,97210.0,97206.0,0.20574829]
[1763117174346,0.00013611,97210.0,97208.0,0.20574399]
[1763117174499,0.00013611,97210.0,97190.0,0.35647329]
[1763117174500,0.00013611,97210.0,97199.0,0.20576278]
[1763117174705,0.20574991,97206.0,97202.0,0.20575649]
[1763117174910,0.20575258,97205.0,97200.0,0.20576131]
[1763117175325,0.20575258,97205.0,97202.0,0.2057563]
[1763117175523,0.20574927,97206.0,97202.0,0.2057563]
[1763117175987,0.00013611,97210.0,97204.0,0.002]
[1763117176200,0.00013611,97210.0,97206.0,0.2057479]
[1763117176853,0.00013611,97210.0,97202.0,0.002]
[1763117177025,0.01623,97207.0,97202.0,0.002]
[1763117177242,0.01623,97207.0,97190.0,0.33647329]
[1763117177436,0.20575416,97204.0,97201.0,0.20575879]
[1763117177662,0.01623,97207.0,97194.0,0.20577351]
[1763117177796,0.2057454,97208.0,97204.0,0.2057527]
[1763117178009,0.20574731,97207.0,97202.0,0.20575577]
[1763117178200,0.20574931,97206.0,97202.0,0.20575577]
[1763117178380,0.20575614,97203.0,97200.0,0.20576035]
[1763117178585,0.20576143,97200.0,97196.0,0.20576952]
[1763117178785,0.21819031,97201.0,97197.0,0.20576587]
[1763117179068,0.21819031,97201.0,97200.0,0.20576131]
[1763117179069,0.01243,97201.0,97200.0,0.20576131]
[1763117179251,0.22920501,97208.0,97205.0,0.20575063]
[1763117179252,0.02346,97208.0,97205.0,0.20575063]
[1763117179457,0.02346,97208.0,97201.0,0.20575842]
[1763117179660,0.2057537,97204.0,97201.0,0.20575842]
[1763117180446,0.20574859,97207.0,97201.0,0.20575842]
[1763117180654,0.20575085,97205.0,97202.0,0.20575592]
[1763117181062,0.20575327,97204.0,97201.0,0.002]
[1763117181266,0.20575066,97206.0,97202.0,0.20575691]
[1763117181469,0.01243,97209.0,97201.0,0.002]
[1763117181669,0.20587642,97210.0,97206.0,0.20574725]
[1763117182283,0.20574513,97208.0,97203.0,0.20575347]
[1763117182481,0.20575708,97202.0,97201.0,0.002]
[1763117182803,0.20575567,97203.0,97199.0,0.20576223]
[1763117183030,0.20575714,97202.0,97197.0,0.20576647]
[1763117183268,0.20576342,97200.0,97195.0,0.20577007]
[1763117183491,0.20576762,97198.0,97194.0,0.20577401]
[1763117183743,0.20576806,97197.0,97192.0,0.20577782]
[1763117183982,0.20577119,97196.0,97191.0,0.10315819]
[1763117184235,0.20577119,97196.0,97192.0,0.20577618]
[1763117184494,0.03589,97207.0,97188.0,0.32618417]
[1763117184495,0.20576582,97198.0,97188.0,0.32618417]
[1763117184727,0.20578041,97191.0,97180.0,0.01069018]
[1763117184936,0.20577914,97192.0,97188.0,0.20578542]
[1763117185122,0.20577914,97192.0,97189.0,0.20578457]
[1763117185369,0.02346,97195.0,97185.0,0.20579228]
[1763117185605,0.01243,97198.0,97197.0,0.20576766]
[1763117185821,0.20574274,97209.0,97201.0,0.2057592]
[1763117186032,0.20574879,97206.0,97201.0,0.2057592]
[1763117186243,0.00013611,97210.0,97188.0,0.32818417]
[1763117186452,0.2344446,97189.0,97188.0,0.002]
[1763117186700,0.20578884,97187.0,97186.0,0.00183886]
[1763117186915,0.22201884,97187.0,97186.0,0.00183886]
[1763117187986,0.01243,97195.0,97186.0,0.00183886]
[1763117188226,0.20578884,97187.0,97186.0,0.00183886]
[1763117188876,0.03589,97195.0,97186.0,0.00183886]
[1763117189092,0.20578884,97187.0,97186.0,0.00183886]
[1763117189375,0.20578884,97187.0,97186.0,0.00383886]
[1763117190002,0.22201884,97187.0,97186.0,0.00183886]
[1763117191324,0.22201884,97187.0,97186.0,0.00383886]
[1763117191944,0.22201884,97187.0,97186.0,0.00183886]
[1763117192160,0.22201884,97187.0,97186.0,0.00283886]
[1763117195725,0.23404884,97187.0,97186.0,0.00283886]
[1763117200050,0.20578244,97191.0,97186.0,0.00283886]
[1763117200309,0.02346,97194.0,97186.0,0.00283886]
[1763117200527,0.23436884,97187.0,97186.0,0.00283886]
[1763117200762,0.21781884,97187.0,97186.0,0.00283886]
[1763117200993,0.20578884,97187.0,97186.0,0.00283886]
[1763117201196,0.20578884,97187.0,97186.0,0.00183886]
[1763117201411,0.23436884,97187.0,97186.0,0.00183886]
[1763117201735,0.20578609,97189.0,97186.0,0.00183886]
[1763117202447,0.20578884,97187.0,97186.0,0.00283886]
[1763117202854,0.20578884,97187.0,97186.0,0.00183886]
[1763117203456,0.23436884,97187.0,97186.0,0.00183886]
[1763117203875,0.21781884,97187.0,97186.0,0.00183886]
[1763117204282,0.21781884,97187.0,97186.0,0.00283886]
[1763117204742,0.21781884,97187.0,97186.0,0.00183886]
[1763117205155,0.21781884,97187.0,97186.0,0.00283886]
[1763117206511,0.23436884,97187.0,97186.0,0.00283886]
[1763117207554,0.23436884,97187.0,97186.0,0.00183886]
[1763117207940,0.23436884,97187.0,97186.0,0.00283886]
[1763117212097,0.23436884,97187.0,97186.0,0.00183886]
[1763117213455,0.23436884,97187.0,97186.0,0.00283886]
[1763117213845,0.23436884,97187.0,97186.0,0.00183886]
[1763117219939,0.23436884,97187.0,97186.0,0.00187886]
[1763117220562,0.01203,97187.0,97186.0,0.00187886]
[1763117220769,0.03715,97195.0,97186.0,0.00187886]
[1763117220976,0.20578461,97189.0,97186.0,0.00187886]
[1763117221185,0.20578299,97190.0,97186.0,0.20766855]
[1763117221609,0.2057432,97209.0,97186.0,0.00187886]
[1763117221833,0.03715,97207.0,97195.0,0.20577088]
[1763117222051,0.03715,97207.0,97186.0,0.00187886]
[1763117222052,0.02472,97203.0,97187.0,0.20578884]
[1763117222260,0.23414884,97187.0,97186.0,0.00187886]
[1763117222891,0.23414884,97187.0,97186.0,0.00387886]
[1763117223102,0.23414884,97187.0,97186.0,0.00287886]
[1763117223314,0.02836,97187.0,97186.0,0.00187886]
[1763117223540,0.01243,97202.0,97186.0,0.00287886]
[1763117223541,0.01199,97195.0,97186.0,0.00287886]
[1763117223740,0.01199,97195.0,97192.0,0.20577743]
[1763117223946,0.01199,97195.0,97193.0,0.20577568]
[1763117224159,0.01199,97195.0,97193.0,0.20577519]
[1763117225206,0.01199,97195.0,97191.0,0.20577938]
[1763117225207,0.20576688,97198.0,97191.0,0.20577938]
[1763117225439,0.01199,97219.0,97186.0,0.00287886]
[1763117225440,0.01199,97219.0,97193.0,0.002]
[1763117225651,0.00013611,97210.0,97205.0,0.20574982]
[1763117225864,0.00013611,97210.0,97209.0,0.20574226]
[1763117226728,0.00013611,97210.0,97207.0,0.20574491]
[1763117226961,0.01637,97208.0,97202.0,0.20575586]
[1763117227245,0.20574548,97208.0,97201.0,0.20575906]
[1763117227458,0.20587714,97210.0,97205.0,0.20574965]
[1763117227875,0.20574295,97209.0,97205.0,0.20574965]
[1763117228076,0.20574295,97209.0,97201.0,0.20575906]
[1763117228077,0.00013611,97210.0,97209.0,0.20574226]
[1763117228283,0.00013611,97210.0,97209.0,0.20874226]
[1763117228492,0.00013611,97210.0,97209.0,0.20574226]
[1763117228701,0.00013611,97210.0,97209.0,0.20674226]
[1763117229333,0.00013611,97210.0,97209.0,0.20574226]
[1763117229547,0.00013611,97210.0,97209.0,0.21074226]
[1763117236664,0.00013611,97210.0,97209.0,0.22285226]
[1763117238386,0.00013611,97210.0,97209.0,0.01711]
[1763117238593,0.00013611,97210.0,97209.0,0.005]
[1763117239019,0.00013611,97210.0,97209.0,0.003]
[1763117239225,0.00013611,97210.0,97209.0,0.005]
[1763117239431,0.00013611,97210.0,97209.0,0.20774226]
[1763117239640,0.00013611,97210.0,97209.0,0.21074226]
[1763117246792,0.00013611,97210.0,97209.0,0.24161991]
[1763117249929,7.853e-05,97210.0,97209.0,0.24161991]
[1763117250085,7.853e-05,97210.0,97209.0,0.21074226]
[1763117254975,7.853e-05,97210.0,97209.0,0.005]
[1763117255721,7.853e-05,97210.0,97209.0,0.21074226]
[1763117255918,7.853e-05,97210.0,97209.0,0.005]
[1763117256118,0.20581868,97210.0,97209.0,0.005]
[1763117256321,0.22163868,97210.0,97209.0,0.005]
[1763117257911,0.22163868,97210.0,97209.0,0.002]
[1763117258128,0.22163868,97210.0,97208.0,0.4]
[1763117258343,0.01582,97209.0,97208.0,0.4]
[1763117260026,0.01582,97209.0,97208.0,0.402]
[1763117260443,0.01582,97209.0,97208.0,0.4]
[1763117260648,0.01582,97209.0,97208.0,0.401]
[1763117260854,0.01582,97209.0,97208.0,0.403]
[1763117267279,0.22156226,97209.0,97208.0,0.403]
[1763117268149,0.22150563,97209.0,97208.0,0.403]
[1763117269232,0.01576337,97209.0,97208.0,0.403]
[1763117269433,0.22150563,97209.0,97208.0,0.403]
[1763117271932,7.853e-05,97210.0,97208.0,0.403]
[1763117272275,7.853e-05,97210.0,97209.0,0.20574226]
[1763117273542,0.20581868,97210.0,97208.0,0.4]
[1763117273743,0.20574226,97209.0,97208.0,0.4]
[1763117274101,7.853e-05,97210.0,97209.0,0.20574226]
[1763117274294,7.853e-05,97210.0,97208.0,0.402]
[1763117274499,7.853e-05,97210.0,97209.0,0.20574226]
[1763117275108,7.853e-05,97210.0,97208.0,0.402]
[1763117275321,0.23358226,97209.0,97208.0,0.4]
[1763117275508,0.23358226,97209.0,97208.0,0.402]
[1763117275883,7.853e-05,97210.0,97208.0,0.401]
[1763117276102,0.23358226,97209.0,97208.0,0.401]
[1763117276304,0.33674045,97209.0,97208.0,0.4]
[1763117276761,0.33674045,97209.0,97208.0,0.401]
[1763117277821,0.33674045,97209.0,97208.0,0.403]
[1763117279980,0.23358226,97209.0,97208.0,0.403]
[1763117281359,0.02784,97209.0,97208.0,0.403]
[1763117281582,7.853e-05,97210.0,97208.0,0.403]
[1763117281817,7.853e-05,97210.0,97208.0,0.60874421]
[1763117282024,7.853e-05,97210.0,97209.0,0.20574226]
[1763117283727,7.853e-05,97210.0,97209.0,0.20674226]
[1763117284149,7.853e-05,97210.0,97209.0,0.001]
[1763117284346,7.853e-05,97210.0,97209.0,0.20674226]
[1763117284546,7.853e-05,97210.0,97209.0,0.20874226]
[1763117285364,7.853e-05,97210.0,97209.0,0.003]
[1763117286009,7.853e-05,97210.0,97209.0,0.20874226]
[1763117289168,7.853e-05,97210.0,97209.0,0.31190045]
[1763117289295,7.853e-05,97210.0,97209.0,0.20874226]
[1763117289496,7.853e-05,97210.0,97209.0,0.31090045]
[1763117289886,7.853e-05,97210.0,97209.0,0.20774226]
[1763117290112,7.853e-05,97210.0,97209.0,0.21074226]
[1763117290925,0.01656853,97210.0,97209.0,0.005]
[1763117293623,0.20574226,97209.0,97208.0,0.4]
[1763117293790,0.22223226,97209.0,97208.0,0.4]
[1763117295011,0.22223226,97209.0,97208.0,0.402]
[1763117296020,0.588651,97209.0,97208.0,0.403]
[1763117296345,0.588651,97209.0,97208.0,0.001]
[1763117296635,0.20578037,97191.0,97190.0,0.01986]
[1763117296814,0.33786856,97191.0,97190.0,0.01986]
[1763117297033,0.20578884,97187.0,97186.0,0.00187886]
[1763117297211,0.23471884,97187.0,97186.0,0.00187886]
[1763117297750,0.27813758,97187.0,97186.0,0.00187886]
[1763117298170,0.27813758,97187.0,97186.0,0.00387886]
[1763117299307,0.27813758,97187.0,97186.0,0.00487886]
[1763117300745,0.02893,97181.0,97160.0,0.0004]
[1763117300948,0.52886509,97151.0,97150.0,0.0204]
[1763117301145,0.55779509,97151.0,97150.0,0.0004]
[1763117301986,0.33795328,97151.0,97150.0,0.0204]
[1763117302186,0.33799866,97151.0,97150.0,0.0204]
[1763117302443,0.33799866,97151.0,97150.0,0.0004]
[1763117303397,0.33799866,97151.0,97150.0,0.0204]
[1763117303636,0.33799866,97151.0,97150.0,0.0214]
[1763117308371,0.33799866,97151.0,97150.0,0.0014]
[1763117310337,0.01248538,97151.0,97150.0,0.0014]
[1763117310981,0.02836538,97151.0,97150.0,0.0014]
[1763117312192,4.538e-05,97151.0,97150.0,0.0014]
[1763117313549,4.538e-05,97151.0,97150.0,0.0004]
[1763117313786,4.538e-05,97151.0,97150.0,0.0014]
[1763117313967,4.538e-05,97151.0,97150.0,0.0024]
[1763117314584,0.20591047,97151.0,97150.0,0.0024]
[1763117317188,4.538e-05,97151.0,97150.0,0.0024]
[1763117317386,4.538e-05,97151.0,97150.0,0.20826721]
[1763117318262,0.20591047,97151.0,97150.0,0.0024]
[1763117318847,4.538e-05,97151.0,97150.0,0.20826721]
[1763117322922,4.538e-05,97151.0,97150.0,0.20726721]
[1763117323129,4.538e-05,97151.0,97150.0,0.20626721]
[1763117323494,4.538e-05,97151.0,97150.0,0.21026721]
[1763117323645,4.538e-05,97151.0,97150.0,0.20826721]
[1763117324054,4.538e-05,97151.0,97150.0,0.20626721]
[1763117324417,4.538e-05,97151.0,97150.0,0.20826721]
[1763117325045,4.538e-05,97151.0,97150.0,0.21126721]
[1763117328512,4.538e-05,97151.0,97150.0,0.0054]
[1763117328682,4.538e-05,97151.0,97150.0,0.21126721]
[1763117332819,4.538e-05,97151.0,97150.0,0.24216397]
[1763117334465,4.538e-05,97151.0,97150.0,0.26216397]
[1763117335102,4.538e-05,97151.0,97150.0,0.24216397]
[1763117335505,4.538e-05,97151.0,97150.0,0.56516397]
[1763117335914,4.538e-05,97151.0,97150.0,0.63858507]
[1763117336127,4.538e-05,97151.0,97150.0,0.56516397]
[1763117336546,4.538e-05,97151.0,97150.0,0.56316397]
[1763117336761,4.538e-05,97151.0,97150.0,0.56616397]
[1763117337742,4.538e-05,97151.0,97150.0,0.56316397]
[1763117337917,4.538e-05,97151.0,97150.0,0.56616397]
[1763117338540,4.538e-05,97151.0,97150.0,0.68972397]
[1763117339760,4.538e-05,97151.0,97150.0,0.58616397]
[1763117339959,4.538e-05,97151.0,97150.0,0.56616397]
[1763117340374,4.538e-05,97151.0,97150.0,0.24316397]
[1763117340577,4.538e-05,97151.0,97150.0,0.03729676]
[1763117340826,4.538e-05,97151.0,97150.0,0.0034]
[1763117341236,4.538e-05,97151.0,97150.0,0.0024]
[1763117341440,4.538e-05,97151.0,97150.0,0.0004]
[1763117341638,0.20591047,97151.0,97150.0,0.0024]
[1763117341842,0.20591047,97151.0,97150.0,0.0044]
[1763117342044,4.538e-05,97151.0,97150.0,0.0024]
[1763117342653,4.538e-05,97151.0,97150.0,0.0034]
[1763117345551,4.538e-05,97151.0,97150.0,0.20926721]
[1763117346166,4.538e-05,97151.0,97150.0,0.22926721]
[1763117348120,4.538e-05,97151.0,97150.0,0.20926721]
[1763117348920,4.538e-05,97151.0,97150.0,0.20826721]
[1763117349123,4.538e-05,97151.0,97150.0,0.20926721]
[1763117349475,4.538e-05,97151.0,97150.0,0.21226721]
[1763117350434,4.538e-05,97151.0,97150.0,0.23226721]
[1763117352452,4.538e-05,97151.0,97150.0,0.55526721]
[1763117352798,0.20578334,97190.0,97160.0,0.0302923]
[1763117353006,4.545e-05,97190.0,97189.0,0.2057846]
[1763117357053,0.20582829,97190.0,97180.0,0.02]
[1763117357260,0.2057855,97189.0,97185.0,0.20579178]
[1763117358239,0.20578728,97188.0,97185.0,0.20579178]
[1763117358423,0.20578722,97188.0,97184.0,0.20579323]
[1763117358836,0.20578466,97189.0,97186.0,0.20579055]
[1763117359892,0.20578789,97188.0,97185.0,0.2057927]
[1763117360039,0.20579025,97187.0,97181.0,0.20580111]
[1763117360251,0.20579283,97186.0,97182.0,0.20579942]
[1763117360462,0.20579388,97185.0,97182.0,0.20579824]
[1763117360828,0.20579522,97184.0,97181.0,0.20580111]
[1763117361065,0.20579522,97184.0,97179.0,0.03088769]
[1763117361066,4.545e-05,97190.0,97165.0,0.323]
[1763117361273,4.545e-05,97190.0,97160.0,0.06119147]
[1763117361274,0.01554,97180.0,97160.0,0.0102923]
[1763117361488,0.20582272,97171.0,97167.0,0.03089138]
[1763117361726,0.02299,97179.0,97155.0,0.20585536]
[1763117361970,0.20584266,97162.0,97157.0,0.01554]
[1763117362206,0.20584472,97161.0,97156.0,0.10315819]
[1763117362453,0.01215,97170.0,97160.0,0.02]
[1763117362923,0.20584309,97162.0,97156.0,0.30901083]
[1763117363167,0.20584309,97162.0,97157.0,0.20585132]
[1763117363388,0.20584309,97162.0,97160.0,0.003]
[1763117363628,0.20583642,97165.0,97160.0,0.001]
[1763117363866,0.2058439,97161.0,97160.0,0.001]
[1763117364318,0.20584724,97160.0,97156.0,0.20785271]
[1763117364588,0.01215,97170.0,97157.0,0.001]
[1763117364821,0.20583532,97166.0,97160.0,0.001]
[1763117365172,0.01215,97170.0,97161.0,0.20584267]
[1763117365389,0.20582696,97169.0,97164.0,0.20583677]
[1763117365588,0.01215,97170.0,97162.0,0.20584087]
[1763117365792,0.20583048,97168.0,97162.0,0.20584087]
[1763117365958,0.20583306,97167.0,97162.0,0.20584087]
[1763117366190,0.20583048,97168.0,97163.0,0.20583891]
[1763117366402,0.20582813,97169.0,97165.0,0.20583465]
[1763117366807,0.2058297,97168.0,97163.0,0.20583967]
[1763117367192,0.2058297,97168.0,97164.0,0.20583646]
[1763117367785,0.20583196,97167.0,97163.0,0.20683967]
[1763117368025,0.20583501,97166.0,97163.0,0.001]
[1763117368230,0.20583639,97165.0,97163.0,0.001]
[1763117369095,0.20583639,97165.0,97161.0,0.20590122]
[1763117369523,0.20583639,97165.0,97164.0,0.001]
[1763117369717,0.20583639,97165.0,97163.0,0.001]
[1763117370338,0.20583788,97164.0,97161.0,0.00105758]
[1763117370556,0.20583788,97164.0,97161.0,0.20790117]
[1763117370764,0.20583788,97164.0,97161.0,0.20690117]
[1763117370883,0.20583788,97164.0,97161.0,5.758e-05]
[1763117371105,0.20583788,97164.0,97163.0,0.001]
[1763117372188,0.20583788,97164.0,97163.0,0.002]
[1763117372418,0.20583788,97164.0,97163.0,0.001]
[1763117372625,0.20583581,97165.0,97163.0,0.001]
[1763117372833,0.20583581,97165.0,97163.0,0.002]
[1763117373042,0.20583581,97165.0,97163.0,0.001]
[1763117373642,0.20584179,97162.0,97161.0,0.00105758]
[1763117373848,0.20584179,97162.0,97161.0,5.758e-05]
[1763117374660,0.22160179,97162.0,97161.0,5.758e-05]
[1763117374872,0.22160179,97162.0,97161.0,0.00105758]
[1763117375583,0.22160179,97162.0,97161.0,0.00205758]